fUSD/lending_fUSD_20250811
["ID","MTS","AMOUNT","RATE_DAILY","PERIOD"]
[378527649,1754898930291,-23.02017975,0.00017875,2]
[378527651,1754898974634,-151.1149204,0.00017875,2]
[378527653,1754898980793,-7.9700796,0.00017875,2]
[378527654,1754898997674,200.0,0.000249,120]
[378527655,1754899037262,-292.0299204,0.00017049,2]
[378527656,1754899040241,-228.9700796,0.00017049,2]
[378527657,1754899040264,-170.0,0.00017831,7]
[378527658,1754899040286,-158.27,0.00017854,2]
[378527660,1754899070724,337.51,0.00013699,2]
[378527661,1754899148143,250.0,0.00015,2]
[378527662,1754899149235,250.0,0.00017,2]
[378527666,1754899265305,-50.0,0.00017,2]
[378527667,1754899265329,-142.7599204,0.00017784,2]
[378527668,1754899268151,-25.8500796,0.00017784,2]
[378527669,1754899268177,-152.45,0.00017819,2]
[378527670,1754899268202,-32.83812589,0.00017863,2]
[378527671,1754899273516,-119.61187411,0.00017863,2]
[378527672,1754899273541,-111.90484585,0.00017875,2]
[378527673,1754899279101,-300.0,0.00017875,2]
[378527674,1754899281059,-21.75313674,0.00017875,2]
[378527675,1754899281082,-132.32686326,0.00017875,2]
[378527676,1754899282948,-18.67313674,0.00017875,2]
[378527677,1754899282970,-144.14616113,0.00017875,2]
[378527678,1754899285920,-72.68283017,0.00017875,2]
[378527679,1754899287745,-166.1190837,0.00017875,2]
[378527680,1754899290932,-50.70990759,0.00017875,2]
[378527682,1754899301950,1000.0,0.00025,120]
[378527683,1754899325666,-244.11923116,0.00017852,2]
[378527684,1754899335994,-19.82327259,0.00017852,2]
[378527685,1754899336017,-132.17672741,0.00017875,2]
[378527686,1754899338596,-300.0,0.00017875,2]
[378527687,1754899341858,-240.67127259,0.00017875,2]
[378527688,1754899365596,280.0,0.00025,120]
[378527693,1754899398375,-228.83592759,0.00017875,2]
[378527694,1754899400046,-153.09979508,0.00017875,2]
[378527695,1754899402307,-64.89327733,0.00017875,2]
[378527698,1754899420242,-283.50182202,0.00017751,2]
[378527700,1754899423919,-269.66917798,0.00017751,2]
[378527701,1754899425610,-457.47442981,0.00017751,2]
[378527702,1754899431117,-282.47745944,0.00017751,2]
[378527703,1754899437427,-260.04811075,0.00017721,2]
[378527705,1754899440859,-145.55188925,0.00017721,2]
[378527706,1754899440882,-40.65527557,0.00017751,2]
[378527707,1754899442282,-300.0,0.0001775,2]
[378527708,1754899442304,-85.87945148,0.00017751,2]
[378527709,1754899447061,-338.84904664,0.00017751,2]
[378527710,1754899452149,-278.69775549,0.00017751,2]
[378527713,1754899459954,-180.28000949,0.00017751,2]
[378527714,1754899463079,-180.08657208,0.00017751,2]
[378527715,1754899465113,-1000.0,0.00017751,2]
[378527718,1754899477266,-235.55,0.00017751,2]
[378527719,1754899481891,-236.70653123,0.00017751,2]
[378527721,1754899489722,-173.68871168,0.00017751,2]
[378527722,1754899493363,-193.76868065,0.00017751,2]
[378527723,1754899496944,-154.2,0.00017751,2]
[378527724,1754899502705,-246.40930924,0.0001775,2]
[378527726,1754899505247,-53.59069076,0.0001775,2]
[378527727,1754899505275,-136.203582,0.0001775,2]
[378527728,1754899507690,-150.0,0.00017088,2]
[378527729,1754899507713,-52.26460381,0.00017088,2]
[378527730,1754899511525,-97.90659262,0.00017088,2]
[378527731,1754899511549,-150.0,0.00017088,2]
[378527732,1754899511571,-57.78645163,0.00017088,2]
[378527735,1754899527540,-92.21354837,0.00017088,2]
[378527736,1754899527562,-127.18712368,0.00017088,2]
[378527737,1754899531597,-22.81287632,0.00017088,2]
[378527738,1754899531622,-150.0,0.00017088,2]
[378527739,1754899531651,-99.82880357,0.00017088,2]
[378527742,1754899538833,-50.17119643,0.00017088,2]
[378527743,1754899538860,-150.0,0.00017088,2]
[378527744,1754899538888,-99.41789484,0.00017088,2]
[378527745,1754899542912,-50.58210516,0.00017088,2]
[378527746,1754899542935,-150.21524086,0.00017088,2]
[378527747,1754899542957,-89.88544398,0.00017088,2]
[378527748,1754899546544,-139.68159047,0.00017088,2]
[378527749,1754899546567,-92.31555285,0.00017088,2]
[378527751,1754899553978,-57.68444715,0.00017088,2]
[378527752,1754899554001,-150.0,0.00017088,2]
[378527753,1754899554026,-150.0,0.00017088,2]
[378527754,1754899554050,-150.0,0.00017088,2]
[378527755,1754899554074,-150.0,0.00017088,2]
[378527756,1754899554098,-144.31555285,0.00017088,2]
[378527757,1754899556522,-436.203582,0.00017002,2]
[378527758,1754899556546,-5.68444716,0.00017088,2]
[378527759,1754899556567,-150.0,0.00017088,2]
[378527760,1754899556590,-231.27,0.00017621,2]
[378527761,1754899556612,-150.0,0.00017721,2]
[378527762,1754899556638,-382.06353445,0.0001775,2]
[378527763,1754899559576,-400.0,0.0001775,2]
[378527764,1754899561891,-208.33180686,0.0001775,2]
[378527765,1754899567332,-73.40107669,0.0001775,2]
[378527766,1754899567355,-238.02117539,0.0001775,2]
[378527767,1754899570342,-61.97882461,0.0001775,2]
[378527768,1754899570365,-2015.94866976,0.00017751,2]
[378527770,1754899571603,-183.78692759,0.00017751,2]
[378527771,1754899574868,-186.86020824,0.00017751,2]
[378527772,1754899581035,-191.70919262,0.00017094,2]
[378527773,1754899582869,-264.52,0.00017094,2]
[378527774,1754899585167,-49.77080738,0.00017094,2]
[378527775,1754899585190,-185.70919262,0.00017751,2]
[378527778,1754899588199,-285.44203727,0.00017751,2]
[378527779,1754899590897,-1092.15465697,0.00017751,2]
[378527780,1754899593124,-208.91613073,0.00017751,2]
[378527781,1754899598469,-180.89799403,0.00017751,2]
[378527782,1754899600760,-300.0,0.00017751,2]
[378527784,1754899607869,-472.8577481,0.00017751,2]
[378527785,1754899613007,-196.33822289,0.00017751,2]
[378527786,1754899614634,-173.08432096,0.00017751,2]
[378527787,1754899616277,-296.57745615,0.00017751,2]
[378527788,1754899618003,-215.6860044,0.00017751,2]
[378527789,1754899621685,-300.0,0.0001767,2]
[378527790,1754899624052,-225.57595904,0.0001767,2]
[378527792,1754899626267,-258.73803656,0.0001767,2]
[378527793,1754899631116,-167.45,0.0001767,2]
[378527794,1754899634766,-48.2360044,0.0001767,2]
[378527795,1754899634788,-105.9639956,0.00017751,2]
[378527796,1754899638694,-200.0,0.00017751,2]
[378527798,1754899640331,-240.232003,0.00017751,2]
[378527799,1754899645599,-198.52,0.00017751,2]
[378527800,1754899650227,-181.81063905,0.00017751,2]
[378527802,1754899655156,-188.0,0.00017751,2]
[378527822,1754899831629,-521.0,0.00017094,2]
[378527823,1754899831639,-1000.0,0.00017284,5]
[378527824,1754899831650,-1000.0,0.00017465,5]
[378527825,1754899831660,-200.0,0.000175,2]
[378527826,1754899831670,-165.19,0.00017567,2]
[378527827,1754899831679,-604.16,0.00017644,2]
[378527828,1754899831689,-500.0,0.00017651,2]
[378527829,1754899831699,-166.85011598,0.00017651,2]
[378527830,1754899831709,-300.0,0.00017653,2]
[378527831,1754899831722,-1200.0,0.00017653,2]
[378527832,1754899831731,-23900.0,0.00017654,2]
[378527833,1754899831741,-4443.82820438,0.00017751,2]
[378527834,1754899831751,-1571.2386776,0.00017772,2]
[378527835,1754899831762,-1200.0,0.00017874,2]
[378527836,1754899831771,-180.29266792,0.00017875,2]
[378527837,1754899831781,-208.61663813,0.00017875,2]
[378527838,1754899831791,-150.0,0.00017896,2]
[378527839,1754899831802,-152.45,0.00017908,2]
[378527840,1754899831812,-152.45,0.00017952,2]
[378527841,1754899831821,-151.0,0.00017965,2]
[378527842,1754899831831,-151.0,0.00017988,2]
[378527843,1754899831840,-152.45,0.00017997,2]
[378527844,1754899831850,-150.0,0.00018037,2]
[378527845,1754899831860,-150.0,0.00018037,2]
[378527846,1754899831870,-303.5,0.00018049,2]
[378527847,1754899831879,-168.64,0.00018106,2]
[378527848,1754899831889,-1460.2,0.00018188,2]
[378527849,1754899831899,-400.0,0.000182,6]
[378527850,1754899831908,-480.78,0.00018289,2]
[378527852,1754899831917,-800.0,0.000183,6]
[378527853,1754899831927,-150.0,0.00018336,2]
[378527854,1754899831937,-1338.27267233,0.00018341,2]
[378527855,1754899831946,-150.0,0.00018353,2]
[378527856,1754899831956,-1200.0,0.000184,6]
[378527857,1754899831966,-377.37004024,0.00018424,2]
[378527858,1754899831977,-1438.09495884,0.00018424,2]
[378527859,1754899831987,-150.0,0.00018457,2]
[378527860,1754899831997,-150.0,0.00018476,2]
[378527861,1754899832006,-150.0,0.00018481,2]
[378527862,1754899832016,-1600.0,0.000185,6]
[378527863,1754899832026,-150.0,0.00018512,2]
[378527864,1754899832035,-500.0,0.00018537,2]
[378527865,1754899832046,-15944.0993353,0.00018538,2]
[378527866,1754899832056,-2100.0,0.000186,6]
[378527867,1754899832066,-405.6,0.00018608,2]
[378527868,1754899832075,-878.58004442,0.00018663,2]
[378527869,1754899832086,-150.0,0.00018672,2]
[378527870,1754899832095,-400.0,0.000187,6]
[378527871,1754899832106,-150.0,0.00018713,2]
[378527872,1754899832115,-30422.48804444,0.00018719,2]
[378527873,1754899832144,-506.7360119,0.00018719,2]
[378527874,1754899832156,-450.15216339,0.00018719,2]
[378527875,1754899832168,-508.82245087,0.00018719,2]
[378527876,1754899832178,-182.21536289,0.00018755,2]
[378527877,1754899832188,-908.84596732,0.00018768,2]
[378527878,1754899832226,-456.7858882,0.00018768,2]
[378527879,1754899832237,-205.60682208,0.00018768,2]
[378527880,1754899832246,-448.07584798,0.000188,2]
[378527881,1754899832257,-1553.69401967,0.000188,2]
[378527883,1754899837458,-276.25945197,0.000188,2]
[378527884,1754899837470,-400.0,0.000188,6]
[378527885,1754899837482,-182.21536286,0.00018803,2]
[378527886,1754899837494,-300.0,0.00018804,2]
[378527887,1754899837505,-1000.0,0.00018804,5]
[378527888,1754899837517,-300.0,0.00018804,2]
[378527889,1754899837528,-5833.33333,0.0001881,2]
[378527890,1754899837540,-2278.02931962,0.00018811,2]
[378527891,1754899837551,-2278.02931962,0.00018822,2]
[378527892,1754899837564,-2278.02931962,0.00018833,2]
[378527893,1754899837576,-2278.02931962,0.00018844,2]
[378527894,1754899837588,-150.0,0.00018846,2]
[378527895,1754899837600,-500.0,0.00018849,2]
[378527896,1754899837611,-182.21536286,0.00018852,2]
[378527897,1754899837623,-255.33017738,0.00018854,2]
[378527898,1754899837634,-500.0,0.00018854,2]
[378527899,1754899837646,-234.12266726,0.00018854,2]
[378527900,1754899837657,-231.01650651,0.00018854,2]
[378527901,1754899837669,-500.0,0.00018854,2]
[378527902,1754899837680,-160.19630968,0.00018854,2]
[378527903,1754899837692,-152.35212484,0.00018855,2]
[378527904,1754899837703,-500.0,0.00018855,2]
[378527905,1754899837715,-250.0,0.00018855,2]
[378527906,1754899837727,-160.0,0.00018855,2]
[378527907,1754899837742,-500.0,0.00018855,2]
[378527908,1754899837754,-151.0,0.00018855,2]
[378527909,1754899837765,-250.0,0.00018855,2]
[378527910,1754899837777,-250.0,0.00018855,2]
[378527911,1754899837789,-300.0,0.00018855,2]
[378527912,1754899837801,-500.0,0.00018855,2]
[378527913,1754899837814,-2183.31810187,0.00018855,2]
[378527914,1754899837826,-250.0,0.00018855,2]
[378527915,1754899837837,-300.0,0.00018855,2]
[378527916,1754899837848,-346.92554585,0.00018855,2]
[378527917,1754899837859,-500.0,0.00018855,2]
[378527918,1754899837871,-250.0,0.00018855,2]
[378527920,1754899837883,-300.0,0.00018855,2]
[378527921,1754899837894,-314.91751931,0.00018855,2]
[378527922,1754899837906,-300.0,0.00018855,2]
[378527923,1754899837918,-151.0,0.00018855,2]
[378527924,1754899837930,-618.22038949,0.00018855,2]
[378527925,1754899837941,-250.0,0.00018855,2]
[378527926,1754899837952,-265.66681579,0.00018855,2]
[378527927,1754899837964,-300.0,0.00018855,2]
[378527928,1754899837975,-231.28369723,0.00018855,2]
[378527929,1754899837987,-151.0,0.00018855,2]
[378527930,1754899837998,-300.0,0.00018855,2]
[378527931,1754899838010,-500.0,0.00018855,2]
[378527932,1754899838022,-500.0,0.00018855,2]
[378527933,1754899838033,-300.0,0.00018855,2]
[378527934,1754899838045,-427.01890711,0.00018855,2]
[378527935,1754899838058,-500.0,0.00018855,2]
[378527936,1754899838070,-500.0,0.00018855,2]
[378527937,1754899838081,-300.0,0.00018855,2]
[378527938,1754899838093,-500.0,0.00018855,2]
[378527939,1754899838107,-500.0,0.00018855,2]
[378527940,1754899838120,-300.0,0.00018855,2]
[378527941,1754899838131,-500.0,0.00018855,2]
[378527942,1754899838143,-500.0,0.00018855,2]
[378527943,1754899838155,-300.0,0.00018855,2]
[378527944,1754899838167,-500.0,0.00018855,2]
[378527945,1754899838179,-500.0,0.00018855,2]
[378527946,1754899838191,-500.0,0.00018855,2]
[378527947,1754899838202,-500.0,0.00018855,2]
[378527948,1754899838214,-500.0,0.00018855,2]
[378527949,1754899838226,-500.0,0.00018855,2]
[378527950,1754899838238,-500.0,0.00018855,2]
[378527951,1754899838249,-500.0,0.00018855,2]
[378527952,1754899838261,-500.0,0.00018855,2]
[378527953,1754899838273,-500.0,0.00018855,2]
[378527954,1754899838284,-500.0,0.00018855,2]
[378527955,1754899838296,-500.0,0.00018855,2]
[378527956,1754899838309,-500.0,0.00018855,2]
[378527957,1754899838321,-500.0,0.00018855,2]
[378527958,1754899838332,-528.3963339,0.00018855,2]
[378527959,1754899838343,-500.0,0.00018855,2]
[378527960,1754899838355,-500.0,0.00018855,2]
[378527961,1754899838367,-500.0,0.00018855,2]
[378527962,1754899838378,-286.00135938,0.00018855,2]
[378527963,1754899838391,-181.08010149,0.00018855,2]
[378527964,1754899838403,-151.0,0.00018855,2]
[378527965,1754899838415,-151.0,0.00018855,2]
[378527966,1754899838426,-151.0,0.00018855,2]
[378527967,1754899838438,-151.0,0.00018855,2]
[378527968,1754899838449,-151.96310113,0.00018855,2]
[378527969,1754899838461,-500.0,0.00018855,2]
[378527970,1754899838473,-500.0,0.00018855,2]
[378527971,1754899838485,-500.0,0.00018855,2]
[378527972,1754899838496,-500.0,0.00018855,2]
[378527973,1754899838508,-500.0,0.00018855,2]
[378527974,1754899838520,-500.0,0.00018855,2]
[378527975,1754899838534,-169.75832183,0.00018855,2]
[378527976,1754899838545,-250.0,0.00018855,2]
[378527977,1754899838558,-250.0,0.00018855,2]
[378527978,1754899838569,-250.0,0.00018855,2]
[378527979,1754899838580,-250.0,0.00018855,2]
[378527980,1754899838590,-250.0,0.00018855,2]
[378527981,1754899838603,-250.0,0.00018855,2]
[378527982,1754899838615,-313.67005181,0.00018855,2]
[378527983,1754899838627,-2278.02931962,0.00018856,2]
[378527984,1754899838639,-2278.02931962,0.00018867,2]
[378527985,1754899838651,-150.0,0.00018869,2]
[378527986,1754899838662,-2278.02931962,0.00018878,2]
[378527987,1754899838674,-2500.0,0.00018882,3]
[378527988,1754899838685,-2278.02931962,0.00018889,2]
[378527989,1754899838697,-551.59817973,0.0001889,2]
[378527990,1754899838709,-2500.0,0.00018891,3]
[378527991,1754899838721,-155.7312584,0.00018899,2]
[378527992,1754899838734,-173.42659534,0.00018899,2]
[378527993,1754899838745,-173.42659534,0.00018899,2]
[378527994,1754899838757,-1464.782,0.000189,2]
[378527995,1754899838768,-1000.0,0.000189,2]
[378527997,1754899838780,-154.43285,0.000189,2]
[378527999,1754899838791,-2500.0,0.000189,3]
[378528001,1754899838802,-1000.0,0.000189,2]
[378528003,1754899838816,-1000.0,0.000189,2]
[378528005,1754899838827,-1000.0,0.000189,2]
[378528007,1754899838839,-1000.0,0.000189,2]
[378528009,1754899838850,-1000.0,0.000189,3]
[378528011,1754899838862,-1000.0,0.000189,3]
[378528013,1754899838872,-1081.0,0.000189,2]
[378528014,1754899838883,-1000.0,0.000189,2]
[378528015,1754899838895,-1000.0,0.000189,2]
[378528016,1754899838907,-1000.0,0.000189,3]
[378528017,1754899838919,-1000.0,0.000189,2]
[378528018,1754899838931,-1000.0,0.000189,2]
[378528019,1754899838943,-1000.0,0.000189,2]
[378528020,1754899838955,-1003.0,0.000189,2]
[378528021,1754899838967,-412.0000574,0.000189,2]
[378528022,1754899838980,-400.0,0.000189,6]
[378528023,1754899838991,-457.87080987,0.000189,3]
[378528024,1754899839003,-2278.02931962,0.000189,2]
[378528025,1754899839015,-258.87520042,0.000189,2]
[378528026,1754899839027,-240.12074688,0.000189,3]
[378528027,1754899839039,-2500.0,0.000189,3]
[378528028,1754899839051,-366.05,0.000189,2]
[378528029,1754899839063,-211.73953792,0.000189,3]
[378528030,1754899839075,-182.21536286,0.000189,2]
[378528031,1754899839087,-2264.10087164,0.0001891,2]
[378528032,1754899839099,-724.73426691,0.00018918,2]
[378528033,1754899839110,-5833.33333,0.0001892,2]
[378528035,1754899839122,-2979.90298697,0.00018943,2]
[378528037,1754899839134,-1806.44372939,0.00018944,2]
[378528039,1754899839146,-903.22186472,0.00018944,2]
[378528041,1754899839158,-2453.71127005,0.00018945,2]
[378528043,1754899839170,-1934.7001823,0.00018945,2]
[378528046,1754899839182,-3341.75486024,0.00018946,2]
[378528048,1754899839194,-4477.95219928,0.00018946,2]
[378528050,1754899839210,-2205.55752128,0.00018946,2]
[378528053,1754899839222,-92.05707807,0.00018946,2]
[378528058,1754899839265,-377.0,0.00018946,2]
[378528061,1754899839279,-1984.65419198,0.00018946,2]
[378528063,1754899839291,-449.07832664,0.00018948,2]
[378528065,1754899839306,-1945.59952738,0.00018948,2]
[378528068,1754899839318,-2292.40047262,0.00018949,2]
[378528070,1754899839332,-3221.42266943,0.00018949,2]
[378528072,1754899839344,-203.51056847,0.00018949,2]
[378528074,1754899839356,-1036.6667621,0.00018949,2]
[378528156,1754899841038,-1358.01109191,0.00018949,2]
[378528157,1754899841048,-1199.07890809,0.00018949,2]
[378528158,1754899841063,-607.3648213,0.00018949,2]
[378528159,1754899841074,-903.22186472,0.00018951,2]
[378528160,1754899841083,-150.0,0.00018952,2]
[378528161,1754899841093,-2979.90298697,0.00018954,2]
[378528162,1754899841103,-2979.90298697,0.00018954,2]
[378528163,1754899841113,-903.22186472,0.00018955,2]
[378528164,1754899841123,-6683.50972056,0.00018955,2]
[378528165,1754899841132,-2468.46962401,0.00018956,2]
[378528166,1754899841142,-5513.82314205,0.00018957,2]
[378528167,1754899841151,-5597.80165915,0.00018958,2]
[378528168,1754899841162,-2979.90298697,0.00018958,2]
[378528169,1754899841171,-203.51056847,0.00018958,2]
[378528170,1754899841180,-2394.67785401,0.00018958,2]
[378528171,1754899841190,-1806.44372939,0.00018958,2]
[378528172,1754899841200,-3069.0,0.00018959,2]
[378528173,1754899841209,-8759.24619071,0.00018959,2]
[378528174,1754899841327,-5367.73668747,0.00018959,2]
[378528175,1754899841339,-506.01712182,0.00018959,2]
[378528176,1754899841349,-1991.77359454,0.0001896,2]
[378528177,1754899841361,-402.90425947,0.0001896,2]
[378528178,1754899841371,-1446.87748684,0.0001896,2]
[378528179,1754899841383,-947.80036718,0.0001896,2]
[378528180,1754899841399,-2332.97500842,0.00018961,2]
[378528181,1754899841412,-646.92797855,0.00018961,2]
[378528182,1754899841422,-1806.44372939,0.00018961,2]
[378528183,1754899841431,-2453.71127005,0.00018961,2]
[378528184,1754899841440,-1806.44372939,0.00018962,2]
[378528185,1754899841450,-2979.90298697,0.00018963,2]
[378528186,1754899841459,-1934.7001823,0.00018964,2]
[378528187,1754899841468,-2347.87260389,0.00018965,2]
[378528188,1754899841478,-2979.90298697,0.00018966,2]
[378528189,1754899841487,-203.51056847,0.00018966,2]
[378528190,1754899841497,-1934.7001823,0.00018967,2]
[378528191,1754899841507,-1140.50668999,0.00018968,2]
[378528192,1754899841519,-3416.42304463,0.00018968,2]
[378528193,1754899841531,-956.89340743,0.00018968,2]
[378528194,1754899841540,-2394.67785402,0.00018968,2]
[378528195,1754899841550,-203.51056847,0.00018969,2]
[378528196,1754899841560,-2334.55912662,0.00018969,2]
[378528197,1754899841600,-3263.24253253,0.00018969,2]
[378528198,1754899841609,-5597.80165915,0.0001897,2]
[378528199,1754899841619,-3341.75486024,0.00018971,2]
[378528200,1754899841628,-2453.71127005,0.00018971,2]
[378528201,1754899841638,-1806.44372939,0.00018972,2]
[378528202,1754899841648,-5513.82314205,0.00018972,2]
[378528203,1754899841659,-5597.80165915,0.00018973,2]
[378528204,1754899841668,-500.0,0.00018973,2]
[378528205,1754899841678,-500.0,0.00018973,2]
[378528206,1754899841687,-500.0,0.00018973,2]
[378528207,1754899841696,-500.0,0.00018973,2]
[378528208,1754899841705,-500.0,0.00018973,2]
[378528209,1754899841718,-466.47693658,0.00018973,2]
[378528210,1754899841728,-500.0,0.00018973,2]
[378528211,1754899841738,-500.0,0.00018973,2]
[378528212,1754899841747,-500.0,0.00018973,2]
[378528213,1754899841757,-2394.67785401,0.00018973,2]
[378528214,1754899841767,-2979.90298697,0.00018973,2]
[378528215,1754899841776,-903.22186472,0.00018974,2]
[378528216,1754899841786,-2468.46962401,0.00018974,2]
[378528217,1754899841796,-6683.50972056,0.00018975,2]
[378528218,1754899841806,-2468.46962401,0.00018976,2]
[378528219,1754899841816,-2468.46962401,0.00018977,2]
[378528220,1754899841826,-1806.44372939,0.00018977,2]
[378528221,1754899841835,-2979.90298697,0.00018978,2]
[378528222,1754899841844,-2979.90298697,0.00018978,2]
[378528223,1754899841853,-1934.7001823,0.0001898,2]
[378528224,1754899841863,-1934.7001823,0.0001898,2]
[378528225,1754899841872,-1806.44372939,0.00018981,2]
[378528226,1754899841882,-3341.75486024,0.00018981,2]
[378528227,1754899841891,-2394.67785401,0.00018981,2]
[378528228,1754899841900,-1806.44372939,0.00018983,2]
[378528229,1754899841910,-2453.71127005,0.00018984,2]
[378528230,1754899841920,-1806.44372939,0.00018985,2]
[378528231,1754899841929,-2468.46962401,0.00018985,2]
[378528232,1754899841939,-168.39664905,0.00018986,2]
[378528233,1754899841948,-179.82345873,0.00018986,2]
[378528234,1754899841958,-150.0,0.00018986,2]
[378528235,1754899841968,-150.0,0.00018986,2]
[378528236,1754899841978,-218.6375802,0.00018986,2]
[378528237,1754899841987,-150.0,0.00018986,2]
[378528238,1754899841997,-159.59157692,0.00018986,2]
[378528239,1754899842007,-150.0,0.00018986,2]
[378528240,1754899842016,-2979.90298697,0.00018987,2]
[378528241,1754899842026,-2979.90298697,0.00018988,2]
[378528242,1754899842036,-6683.50972056,0.00018989,2]
[378528243,1754899842046,-1806.44372939,0.00018989,2]
[378528244,1754899842055,-2979.90298697,0.00018989,2]
[378528245,1754899842067,-1806.44372939,0.00018989,2]
[378528246,1754899842077,-150.19,0.0001899,2]
[378528247,1754899842087,-150.19,0.0001899,2]
[378528248,1754899842097,-150.19,0.0001899,2]
[378528249,1754899842107,-150.19,0.0001899,2]
[378528250,1754899842116,-150.19,0.0001899,2]
[378528251,1754899842126,-150.19,0.0001899,2]
[378528252,1754899842136,-150.19,0.0001899,2]
[378528253,1754899842146,-150.19,0.0001899,2]
[378528254,1754899842156,-150.19,0.0001899,2]
[378528255,1754899842166,-150.19,0.0001899,2]
[378528256,1754899842176,-150.19,0.0001899,2]
[378528257,1754899842186,-150.19,0.0001899,2]
[378528258,1754899842195,-150.19,0.0001899,2]
[378528259,1754899842205,-150.19,0.0001899,2]
[378528260,1754899842215,-150.19,0.0001899,2]
[378528261,1754899842224,-150.19,0.0001899,2]
[378528262,1754899842233,-150.19,0.0001899,2]
[378528263,1754899842242,-150.19,0.0001899,2]
[378528264,1754899842251,-150.19,0.0001899,2]
[378528265,1754899842260,-150.19,0.0001899,2]
[378528266,1754899842270,-150.19,0.0001899,2]
[378528267,1754899842279,-150.19,0.0001899,2]
[378528268,1754899842288,-150.19,0.0001899,2]
[378528269,1754899842298,-150.19,0.0001899,2]
[378528270,1754899842307,-150.19,0.0001899,2]
[378528271,1754899842318,-150.19,0.0001899,2]
[378528272,1754899842327,-150.19,0.0001899,2]
[378528273,1754899842336,-150.19,0.0001899,2]
[378528274,1754899842345,-150.19,0.0001899,2]
[378528275,1754899842355,-150.19,0.0001899,2]
[378528276,1754899842364,-150.19,0.0001899,2]
[378528277,1754899842374,-150.19,0.0001899,2]
[378528278,1754899842383,-150.19,0.0001899,2]
[378528279,1754899842393,-150.19,0.0001899,2]
[378528281,1754899842403,-150.19,0.0001899,2]
[378528294,1754899842883,-150.19,0.0001899,2]
[378528295,1754899842919,-150.19,0.0001899,2]
[378528296,1754899842929,-150.19,0.0001899,2]
[378528297,1754899842939,-150.19,0.0001899,2]
[378528298,1754899842949,-150.19,0.0001899,2]
[378528299,1754899842959,-150.19,0.0001899,2]
[378528300,1754899842968,-150.19,0.0001899,2]
[378528301,1754899842978,-150.19,0.0001899,2]
[378528302,1754899842988,-150.19,0.0001899,2]
[378528303,1754899842998,-150.19,0.0001899,2]
[378528304,1754899843007,-150.19,0.0001899,2]
[378528305,1754899843017,-150.19,0.0001899,2]
[378528306,1754899843027,-150.19,0.0001899,2]
[378528307,1754899843036,-150.19,0.0001899,2]
[378528308,1754899843046,-150.19,0.0001899,2]
[378528309,1754899843056,-150.19,0.0001899,2]
[378528310,1754899843068,-150.19,0.0001899,2]
[378528311,1754899843078,-150.19,0.0001899,2]
[378528312,1754899843088,-150.19,0.0001899,2]
[378528313,1754899843097,-150.19,0.0001899,2]
[378528314,1754899843106,-150.19,0.0001899,2]
[378528315,1754899843116,-150.19,0.0001899,2]
[378528316,1754899843126,-150.19,0.0001899,2]
[378528317,1754899843136,-150.19,0.0001899,2]
[378528318,1754899843145,-150.19,0.0001899,2]
[378528319,1754899843155,-150.19,0.0001899,2]
[378528320,1754899843164,-150.19,0.0001899,2]
[378528321,1754899843174,-150.19,0.0001899,2]
[378528322,1754899843184,-150.19,0.0001899,2]
[378528323,1754899843193,-150.19,0.0001899,2]
[378528324,1754899843203,-150.19,0.0001899,2]
[378528325,1754899843213,-150.19,0.0001899,2]
[378528326,1754899843223,-150.19,0.0001899,2]
[378528327,1754899843233,-150.19,0.0001899,2]
[378528328,1754899843243,-150.19,0.0001899,2]
[378528329,1754899843253,-150.19,0.0001899,2]
[378528330,1754899843263,-150.19,0.0001899,2]